fUST/lending_fUST_20250717
["ID","MTS","AMOUNT","RATE_DAILY","PERIOD"]
[372796220,1752765060776,-460.0,0.00022272,2]
[372796222,1752765060790,-1969.0,0.00022272,2]
[372796225,1752765060803,-487.99,0.00022272,2]
[372796227,1752765060818,-1290.34,0.00022272,2]
[372796229,1752765060831,-1366.78,0.00022272,2]
[372796232,1752765060845,-1222.62,0.00022272,2]
[372796234,1752765060858,-460.0,0.00022272,2]
[372796237,1752765060871,-3110.26,0.00022274,2]
[372796239,1752765060884,-495.25,0.00022275,2]
[372796241,1752765060898,-1328.67,0.00022275,2]
[372796244,1752765060911,-2293.05,0.00022275,2]
[372796246,1752765060924,-2090.37,0.00022275,2]
[372796248,1752765060939,-1246.01,0.00022275,2]
[372796251,1752765060952,-151.0,0.00022284,7]
[372796253,1752765060967,-151.0,0.00022284,2]
[372796255,1752765060985,-151.0,0.00022284,2]
[372796258,1752765060998,-500.0,0.00022284,2]
[372796260,1752765061013,-151.0,0.00022284,2]
[372796262,1752765061023,-151.0,0.00022284,2]
[372796264,1752765061033,-247.18468876,0.00022284,2]
[372796266,1752765061043,-276.01602829,0.00022284,2]
[372796283,1752765061196,-151.0,0.00022284,2]
[372796286,1752765061220,-151.0,0.00022284,2]
[372796288,1752765061233,-151.0,0.00022284,2]
[372796290,1752765061243,-151.41970091,0.00022284,2]
[372796292,1752765061252,-500.0,0.00022284,2]
[372796294,1752765061261,-500.0,0.00022284,2]
[372796296,1752765061271,-151.0,0.00022284,2]
[372796298,1752765061281,-1156.0,0.00022284,2]
[372796300,1752765061290,-151.0,0.00022284,2]
[372796302,1752765061300,-151.0,0.00022284,2]
[372796304,1752765061310,-930.0,0.00022284,2]
[372796306,1752765061321,-151.0,0.00022284,2]
[372796308,1752765061331,-151.0,0.00022284,2]
[372796310,1752765061341,-151.0,0.00022284,2]
[372796312,1752765061351,-151.0,0.00022284,2]
[372796314,1752765061362,-500.0,0.00022284,2]
[372796316,1752765061371,-198.0,0.00022284,2]
[372796318,1752765061381,-500.0,0.00022284,2]
[372796320,1752765061391,-1083.40884517,0.00022296,4]
[372796322,1752765061400,-600.0,0.0002231,4]
[372796324,1752765061410,-600.0,0.0002231,4]
[372796326,1752765061419,-601.80256504,0.0002232,2]
[372796328,1752765061429,-153.0,0.00022324,2]
[372796330,1752765061438,-153.0,0.00022324,2]
[372796332,1752765061448,-153.0,0.00022324,2]
[372796334,1752765061458,-153.0,0.00022324,2]
[372796336,1752765061471,-243.624583,0.00022349,5]
[372796338,1752765061481,-3036.14865524,0.00022369,2]
[372796340,1752765061491,-1711.44997232,0.0002239,2]
[372796342,1752765061500,-17667.63082844,0.0002239,3]
[372796344,1752765061510,-429.2412091,0.00022418,2]
[372796346,1752765061520,-429.2412091,0.00022418,2]
[372796348,1752765061530,-429.2412091,0.00022418,2]
[372796350,1752765061540,-429.2412091,0.00022418,2]
[372796352,1752765061549,-429.2412091,0.00022418,2]
[372796354,1752765061558,-429.2412091,0.00022418,2]
[372796356,1752765061568,-429.2412091,0.00022418,2]
[372796358,1752765061577,-687.8658418,0.00022418,2]
[372796360,1752765061587,-500.0,0.00022473,2]
[372796362,1752765061596,-500.0,0.00022473,2]
[372796364,1752765061606,-500.0,0.00022473,2]
[372796366,1752765061615,-150.0,0.00022473,2]
[372796368,1752765061625,-150.0,0.00022473,2]
[372796370,1752765061634,-2822.60288286,0.0002249,2]
[372796372,1752765061644,-67053.48343643,0.0002249,7]
[372796374,1752765061653,-500.0,0.0002249,2]
[372796376,1752765061663,-500.0,0.0002249,2]
[372796378,1752765061672,-170.73077212,0.0002249,2]
[372796380,1752765061681,-624394.52858147,0.0002249,7]
[372796382,1752765061690,-182.305552,0.0002249,2]
[372796384,1752765061700,-231.319254,0.0002249,7]
[372796386,1752765061709,-231.319254,0.0002249,7]
[372796388,1752765061723,-231.319254,0.0002249,7]
[372796390,1752765061732,-231.319254,0.0002249,7]
[372796392,1752765061742,-33987.09767267,0.0002249,7]
[372796394,1752765061751,-258.424285,0.0002249,7]
[372796396,1752765061761,-258.424285,0.0002249,7]
[372796398,1752765061770,-151.0,0.0002249,7]
[372796400,1752765061780,-151.0,0.0002249,7]
[372796402,1752765061789,-258.424285,0.0002249,7]
[372796404,1752765061798,-258.424285,0.0002249,7]
[372796406,1752765061808,-151.0,0.0002249,7]
[372796407,1752765061817,-151.0,0.0002249,7]
[372796408,1752765061826,-151.0,0.0002249,7]
[372796409,1752765061836,-151.0,0.0002249,7]
[372796410,1752765061845,-170.460945,0.0002249,7]
[372796411,1752765061855,-69.41454344,0.0002249,7]
[372796433,1752765062139,460.0,0.0001652,2]
[372796463,1752765062432,-460.0,0.00016792,2]
[372796465,1752765062442,-460.0,0.00016794,2]
[372796467,1752765062452,-460.0,0.00017066,2]
[372796469,1752765062462,-460.0,0.00017068,2]
[372796471,1752765062475,-460.0,0.0001734,2]
[372796473,1752765062484,-290.25,0.00017342,2]
[372796475,1752765062494,-460.0,0.00017614,2]
[372796477,1752765062503,-460.0,0.00017888,2]
[372796479,1752765062513,-460.0,0.00018162,2]
[372796481,1752765062524,-425.67117061,0.00018436,2]
[372796483,1752765062533,-664.98,0.00018984,2]
[372796485,1752765062543,-664.98,0.00019258,2]
[372796487,1752765062553,-664.98,0.00019532,2]
[372796489,1752765062562,-664.98,0.00019806,2]
[372796491,1752765062572,-664.98,0.0002008,2]
[372796493,1752765062581,-664.98,0.00020354,2]
[372796495,1752765062591,-664.98,0.00020628,2]
[372796497,1752765062601,-25000.0,0.00022214,2]
[372796499,1752765062611,-81.58545656,0.0002249,7]
[372796501,1752765062620,-151.571345,0.0002249,7]
[372796503,1752765062630,-268.788372,0.0002249,7]
[372796505,1752765062640,-11.46448124,0.0002249,7]
[372796765,1752765065182,-257.32389076,0.0002249,7]
[372796767,1752765065191,-268.788372,0.0002249,7]
[372796769,1752765065202,-268.788372,0.0002249,7]
[372796772,1752765065212,-151.363282,0.0002249,7]
[372796774,1752765065223,-151.0,0.0002249,7]
[372796775,1752765065232,-151.0,0.0002249,7]
[372796777,1752765065242,-151.0,0.0002249,7]
[372796779,1752765065251,-151.0,0.0002249,7]
[372796782,1752765065261,-151.0,0.0002249,7]
[372796784,1752765065270,-151.0,0.0002249,7]
[372796786,1752765065279,-197.974813,0.0002249,7]
[372796788,1752765065289,-197.974813,0.0002249,7]
[372796790,1752765065299,-197.974813,0.0002249,7]
[372796792,1752765065309,-197.974813,0.0002249,7]
[372796794,1752765065318,-188.015,0.0002249,7]
[372796796,1752765065328,-188.015,0.0002249,7]
[372796798,1752765065338,-188.015,0.0002249,7]
[372796800,1752765065348,-188.015,0.0002249,7]
[372796802,1752765065357,-151.0,0.0002249,7]
[372796804,1752765065367,-151.0,0.0002249,7]
[372796806,1752765065376,-151.0,0.0002249,7]
[372796808,1752765065385,-151.0,0.0002249,7]
[372796810,1752765065395,-161.88026,0.0002249,7]
[372796812,1752765065404,-151.0,0.0002249,7]
[372796814,1752765065414,-151.0,0.0002249,7]
[372796816,1752765065423,-151.0,0.0002249,7]
[372796818,1752765065432,-151.35564,0.0002249,7]
[372796820,1752765065442,-151.0,0.0002249,7]
[372796822,1752765065451,-151.0,0.0002249,7]
[372796824,1752765065461,-151.0,0.0002249,7]
[372796826,1752765065472,-151.0,0.0002249,7]
[372796828,1752765065481,-151.0,0.0002249,7]
[372796830,1752765065490,-151.0,0.0002249,7]
[372796832,1752765065499,-151.0,0.0002249,7]
[372796834,1752765065508,-151.0,0.0002249,7]
[372796836,1752765065518,-151.0,0.0002249,7]
[372796838,1752765065529,-151.0,0.0002249,7]
[372796840,1752765065538,-151.0,0.0002249,7]
[372796842,1752765065547,-151.0,0.0002249,7]
[372796844,1752765065557,-151.0,0.0002249,7]
[372796846,1752765065566,-151.0,0.0002249,7]
[372796848,1752765065575,-151.0,0.0002249,7]
[372796850,1752765065586,-154.168874,0.0002249,7]
[372796852,1752765065597,-261.17652,0.0002249,7]
[372796854,1752765065606,-261.17652,0.0002249,7]
[372796856,1752765065616,-151.0,0.0002249,7]
[372796858,1752765065626,-151.0,0.0002249,7]
[372796859,1752765065635,-261.17652,0.0002249,7]
[372796861,1752765065645,-261.17652,0.0002249,7]
[372796863,1752765065655,-151.0,0.0002249,7]
[372796865,1752765065664,-151.0,0.0002249,7]
[372796867,1752765065675,-570.143038,0.0002249,7]
[372796869,1752765065685,-570.143038,0.0002249,7]
[372796871,1752765065695,-570.143038,0.0002249,7]
[372796873,1752765065705,-170.8319976,0.0002249,7]
[372796882,1752765065788,1580.5940541,0.000166,2]
[372796889,1752765065852,3419.4059459,0.000166,2]
[372796905,1752765066007,501.86,0.00016518,2]
[372796916,1752765066115,274.71771532,0.00016518,2]
[372796940,1752765066353,460.0,0.00016519,2]
[372796951,1752765066449,460.0,0.00016518,2]
[372796958,1752765066520,460.0,0.00016521,2]
[372796969,1752765066620,460.0,0.00016522,2]
[372796978,1752765066694,460.0,0.00016518,2]
[372796987,1752765066776,460.0,0.00016518,2]
[372797012,1752765067019,460.0,0.00016518,2]
[372797024,1752765067128,460.0,0.00016522,2]
[372797041,1752765067291,460.0,0.00016522,2]
[372797050,1752765067359,460.0,0.00016518,2]
[372797066,1752765067505,460.0,0.00016522,2]
[372797070,1752765067583,150.0,0.00016354,2]
[372797071,1752765067649,460.0,0.00016518,2]
[372797072,1752765067721,134.01633878,0.00016521,2]
[372797073,1752765067779,325.98366122,0.00016521,2]
[372797074,1752765067887,460.0,0.00016518,2]
[372797075,1752765067996,460.0,0.00016518,2]
[372797076,1752765068113,460.0,0.00016518,2]
[372797077,1752765068223,460.0,0.00016522,2]
[372797078,1752765068291,460.0,0.00016518,2]
[372797079,1752765068353,460.0,0.00016518,2]
[372797080,1752765068478,460.0,0.00016522,2]
[372797081,1752765068630,460.0,0.00016518,2]
[372797082,1752765068715,460.0,0.00016518,2]
[372797083,1752765068814,460.0,0.00016518,2]
[372797084,1752765068936,460.0,0.00016518,2]
[372797085,1752765069055,460.0,0.00016522,2]
[372797086,1752765069158,460.0,0.00016518,2]
[372797087,1752765069256,500.00000001,0.00016519,2]
[372797088,1752765069623,460.0,0.00016518,2]
[372797089,1752765069702,460.0,0.00016518,2]
[372797090,1752765069793,460.0,0.00016518,2]
[372797091,1752765069855,460.0,0.00016518,2]
[372797092,1752765069935,460.0,0.00016518,2]
[372797093,1752765069995,460.0,0.00016521,2]
[372797094,1752765070072,434.01633877,0.00016518,2]
[372797095,1752765070132,25.98366123,0.00016518,2]
[372797096,1752765070194,487.41144993,0.00016518,2]
[372797097,1752765070306,281.18009666,0.00016518,2]
[372797098,1752765070401,460.0,0.00016519,2]
[372797099,1752765070467,460.0,0.00016518,2]
[372797100,1752765070554,460.0,0.00016518,2]
[372797101,1752765070635,460.0,0.00016518,2]
[372797102,1752765070768,460.0,0.00016518,2]
[372797103,1752765070834,546.12,0.0001652,2]
[372797104,1752765070902,460.0,0.00016518,2]
[372797105,1752765071001,460.0,0.00016518,2]
[372797106,1752765071142,460.0,0.00016518,2]
[372797107,1752765071223,460.0,0.00016518,2]
[372797108,1752765071330,461.41627627,0.00016518,2]
[372797109,1752765071409,460.0,0.00016522,2]
[372797110,1752765071472,460.0,0.00016518,2]
[372797111,1752765071601,460.0,0.00016518,2]
[372797112,1752765071675,460.0,0.00016518,2]
[372797113,1752765072347,460.0,0.00016518,2]
[372797114,1752765074315,1757.88851591,0.000166,2]
[372797115,1752765074369,3242.11148409,0.000166,2]
[372797116,1752765074963,460.0,0.00016518,2]
[372797117,1752765076114,460.0,0.00016518,2]
[372797118,1752765077075,460.0,0.00016518,2]
[372797119,1752765077622,460.0,0.00016518,2]
[372797120,1752765077935,460.0,0.00016521,2]
[372797121,1752765079267,460.0,0.00016518,2]
[372797122,1752765081706,460.0,0.00016518,2]
[372797123,1752765082001,460.0,0.00016518,2]
[372797124,1752765082834,460.0,0.00016518,2]
[372797125,1752765084796,460.0,0.00016518,2]
[372797126,1752765085999,460.0,0.00016518,2]
[372797127,1752765086130,334.61904294,0.00016519,2]
[372797128,1752765086556,460.0,0.0001652,2]
[372797129,1752765086626,460.0,0.00016518,2]
[372797130,1752765090004,443.26947297,0.00016522,2]
[372797131,1752765090062,16.73052703,0.00016522,2]
[372797132,1752765090308,5000.0,0.000166,2]
[372797133,1752765091302,460.0,0.00016518,2]
[372797134,1752765092072,460.0,0.0001652,2]
[372797135,1752765093577,460.0,0.00016518,2]
[372797136,1752765093925,460.0,0.00016518,2]
[372797137,1752765094272,460.0,0.00016522,2]
[372797138,1752765096413,460.0,0.00016518,2]
[372797139,1752765096951,460.0,0.00016518,2]
[372797140,1752765097263,460.0,0.00016518,2]
[372797141,1752765101985,460.0,0.00016518,2]
[372797142,1752765102910,460.0,0.00016518,2]
[372797143,1752765103071,383.26947297,0.00016518,2]
[372797144,1752765103126,76.73052703,0.00016518,2]
[372797145,1752765106176,5000.0,0.000166,2]
[372797146,1752765108116,460.0,0.00016518,2]
[372797147,1752765108709,460.0,0.00016518,2]
[372797148,1752765109526,460.0,0.0001652,2]
[372797149,1752765110570,460.0,0.00016518,2]
[372797150,1752765114441,460.0,0.00016518,2]
[372797151,1752765115424,658.14,0.00016518,2]
[372797152,1752765117329,460.0,0.00016518,2]
[372797153,1752765119689,460.0,0.00016518,2]
[372797154,1752765120181,460.0,0.00016522,2]
[372797155,1752765123107,585.12947297,0.000166,2]
[372797156,1752765123167,4414.87052703,0.000166,2]
[372797157,1752765124342,150.0,0.00015128,2]
[372797158,1752765124737,150.0,0.00015848,2]
[372797159,1752765125186,150.0,0.00016569,2]
[372797160,1752765125544,460.0,0.00016522,2]
[372797161,1752765128111,460.0,0.00016518,2]
[372797162,1752765128734,460.0,0.00016518,2]
[372797163,1752765132066,460.0,0.00016518,2]
[372797164,1752765132905,3295.12947297,0.00016422,2]
[372797165,1752765132961,10000.0,0.00016422,2]
[372797166,1752765133014,10000.0,0.00016422,2]
[372797167,1752765133076,10000.0,0.00016422,2]
[372797168,1752765133134,10000.0,0.00016422,2]
[372797169,1752765133182,76968.96000494,0.00016422,2]
[372797170,1752765133222,9742.21385474,0.00016422,2]
[372797171,1752765133261,10000.0,0.00016422,2]
[372797172,1752765133299,10000.0,0.00016422,2]
[372797173,1752765133335,10000.0,0.00016422,2]
[372797174,1752765133401,7072.42069903,0.00016422,2]
[372797175,1752765133461,10000.0,0.00016422,2]
[372797176,1752765133523,10000.0,0.00016422,2]
[372797177,1752765133579,1234.52205856,0.00016422,2]
[372797178,1752765139557,5000.0,0.000165,2]
[372797179,1752765159775,3765.47794144,0.000165,2]
[372797180,1752765159829,1234.52205856,0.000165,2]
[372797181,1752765175874,5000.0,0.000165,2]
[372797182,1752765193325,3765.47794144,0.000165,2]
[372797183,1752765193389,1234.52205856,0.000165,2]
[372797184,1752765198233,150.0,0.00014865,2]
[372797185,1752765198683,150.0,0.00015572,2]
[372797186,1752765199096,150.0,0.0001628,2]
[372797187,1752765204104,-300.0,0.00016517,2]
[372797188,1752765204170,-460.0,0.00016518,2]
[372797189,1752765204235,-460.0,0.00016518,2]
[372797190,1752765204300,-460.0,0.00016518,2]
[372797191,1752765204376,-460.0,0.00016518,2]
[372797192,1752765204440,-460.0,0.00016518,2]
[372797193,1752765204505,-462.63046953,0.00016518,2]
[372797194,1752765204568,-533.8463616,0.00016518,2]
[372797195,1752765204634,-460.0,0.00016518,2]
[372797196,1752765204698,-460.0,0.00016518,2]
[372797197,1752765204773,-460.0,0.00016518,2]
[372797198,1752765205385,-460.0,0.00016518,2]
[372797199,1752765205450,-460.0,0.00016518,2]
[372797200,1752765205515,-463.59719469,0.00016518,2]
[372797201,1752765205576,-460.0,0.00016518,2]
[372797202,1752765205641,-460.0,0.00016518,2]
[372797203,1752765205703,-460.0,0.00016518,2]
[372797204,1752765205764,-609.570089,0.00016518,2]
[372797205,1752765205824,-500.0,0.00016518,2]
[372797206,1752765205890,-500.0,0.00016518,2]
[372797207,1752765205951,-460.0,0.00016518,2]
[372797208,1752765206568,-460.0,0.00016518,2]
[372797209,1752765206630,-460.0,0.00016518,2]
[372797210,1752765206713,-294.13937907,0.00016518,2]
[372797211,1752765206784,-460.0,0.00016518,2]
[372797212,1752765206848,-460.0,0.00016518,2]
[372797213,1752765206915,-460.0,0.00016518,2]
[372797214,1752765206978,-264.39802173,0.00016518,2]
[372797215,1752765207040,-460.0,0.00016518,2]
[372797216,1752765207109,-460.0,0.00016518,2]
[372797217,1752765207172,-460.0,0.00016518,2]
[372797218,1752765207228,-460.0,0.00016518,2]
[372797219,1752765207287,-142.9251984,0.00016519,2]
[372797220,1752765207354,-317.0748016,0.00016519,2]
[372797221,1752765207412,-460.0,0.00016519,2]
[372797222,1752765207472,-460.0,0.00016519,2]
[372797223,1752765207529,-460.0,0.00016519,2]
[372797224,1752765207586,-460.0,0.0001652,2]
[372797225,1752765207642,-460.0,0.0001652,2]
[372797226,1752765207708,-460.0,0.00016521,2]
[372797227,1752765207775,-462.38900024,0.00016521,2]
[372797228,1752765207834,-460.0,0.00016522,2]
[372797229,1752765207894,-460.0,0.00016522,2]
[372797230,1752765207956,-460.0,0.00016522,2]
[372797231,1752765208319,-460.0,0.00016522,2]
[372797233,1752765210805,460.0,0.00016518,2]
[372797234,1752765210889,5000.0,0.000166,2]
[372797235,1752765212064,460.0,0.00016518,2]
[372797236,1752765212428,460.0,0.00016518,2]
[372797237,1752765214065,460.0,0.00016518,2]
[372797238,1752765214321,460.0,0.00016519,2]
[372797239,1752765218516,460.0,0.00016518,2]
[372797240,1752765218797,460.0,0.00016522,2]
[372797241,1752765219424,460.0,0.00016518,2]
[372797242,1752765222504,400.0,0.00016518,2]
[372797243,1752765222554,60.0,0.00016518,2]
[372797244,1752765223182,460.0,0.00016518,2]
[372797245,1752765225890,5000.0,0.000166,2]
[372797246,1752765230466,460.0,0.00016518,2]
[372797247,1752765230524,460.0,0.00016518,2]
[372797248,1752765233449,460.0,0.00016519,2]
[372797249,1752765236564,818.519576,0.00015793,2]
[372797250,1752765237416,568.04,0.00016518,2]
[372797251,1752765242773,1713.440424,0.000166,2]
[372797252,1752765242828,3286.559576,0.000166,2]
[372797253,1752765247849,460.0,0.00016518,2]
[372797254,1752765248057,460.0,0.00016518,2]
[372797255,1752765249177,460.0,0.0001652,2]
[372797256,1752765255772,460.0,0.00016518,2]
[372797257,1752765258628,460.0,0.00016518,2]
[372797258,1752765259347,4413.440424,0.000166,2]
[372797259,1752765259399,586.559576,0.000166,2]
[372797260,1752765259930,460.0,0.00016518,2]
[372797261,1752765260555,460.0,0.00016518,2]
[372797262,1752765261248,460.0,0.00016521,2]
[372797263,1752765264608,152.18364776,0.00016518,2]
[372797264,1752765266691,354.68505999,0.00016286,2]
[372797265,1752765266756,460.0,0.00016518,2]
[372797266,1752765267679,595.35,0.00016518,2]
[372797267,1752765267907,460.0,0.00016519,2]
[372797268,1752765269888,756.2,0.00016518,2]
[372797269,1752765272876,460.0,0.00016518,2]
[372797270,1752765273511,462.86731609,0.00016518,2]
[372797271,1752765274347,460.0,0.00016518,2]
[372797272,1752765275282,3872.15440016,0.000166,2]
[372797273,1752765275345,1127.84559984,0.000166,2]
[372797274,1752765281575,460.0,0.00016518,2]
[372797275,1752765281851,467.49879131,0.00016518,2]
[372797276,1752765282289,523.25231845,0.00016518,2]
[372797277,1752765284036,460.0,0.00016518,2]
[372797278,1752765284320,460.0,0.00016518,2]
[372797279,1752765284382,460.0,0.00016518,2]
[372797280,1752765284514,460.0,0.00016518,2]
[372797281,1752765289124,630.71,0.00016518,2]
[372797282,1752765291572,4950.6932904,0.000166,2]
[372797283,1752765291627,49.3067096,0.000166,2]
[372797284,1752765293559,460.0,0.00016518,2]
[372797285,1752765296501,460.0,0.00016518,2]
[372797286,1752765297376,460.0,0.00016518,2]
[372797287,1752765298362,460.0,0.00016519,2]
[372797288,1752765298725,8110.6932904,0.00016422,2]
[372797289,1752765298781,10000.0,0.00016422,2]
[372797290,1752765298836,10000.0,0.00016422,2]
[372797291,1752765298889,10000.0,0.00016422,2]
[372797292,1752765298942,10000.0,0.00016422,2]
[372797293,1752765298993,10000.0,0.00016422,2]
[372797294,1752765299048,10000.0,0.00016422,2]
[372797295,1752765299104,10000.0,0.00016422,2]
[372797296,1752765299157,10000.0,0.00016422,2]
[372797297,1752765299210,10000.0,0.00016422,2]
[372797298,1752765299261,10000.0,0.00016422,2]
[372797299,1752765299314,8315.47794144,0.00016422,2]
[372797300,1752765299368,10000.0,0.00016422,2]
[372797301,1752765299425,10000.0,0.00016422,2]
[372797302,1752765299479,5418.15896915,0.00016422,2]
[372797303,1752765308916,4581.84103085,0.000165,2]
[372797304,1752765308988,418.15896915,0.000165,2]
[372797305,1752765325269,5000.0,0.000165,2]
[372797306,1752765335294,150.0,0.00014838,2]
[372797307,1752765338439,287.55186476,0.00016418,2]
[372797308,1752765341931,4144.28916609,0.000165,2]
[372797309,1752765341992,855.71083391,0.000165,2]
[372797311,1752765358072,5000.0,0.000165,2]
[372797312,1752765373940,5000.0,0.000165,2]
[372797315,1752765389739,5000.0,0.000165,2]
[372797317,1752765406142,5000.0,0.000165,2]
[372797320,1752765422462,5000.0,0.000165,2]
[372797322,1752765438897,5000.0,0.000165,2]
[372797323,1752765454240,5000.0,0.000165,2]
[372797325,1752765471349,5000.0,0.000165,2]
[372797326,1752765482524,150.0,0.00015677,2]
[372797327,1752765483313,150.0,0.00016423,2]
[372797329,1752765487664,4700.0,0.000165,2]
[372797330,1752765487697,300.0,0.000165,2]
[372797331,1752765498649,9700.0,0.0001552,2]
[372797332,1752765498682,300.0,0.0001552,2]
[372797333,1752765503764,2548.09275071,0.000165,2]
[372797336,1752765535901,754.853591,0.00013699,2]
[372797337,1752765549530,150.0,0.00014814,2]
[372797338,1752765550207,150.0,0.0001552,2]
[372797339,1752765550669,150.0,0.00016225,2]
[372797341,1752765638724,215.2502091,0.00016416,2]
[372797346,1752765697330,795.4433422,0.00015517,2]
[372797347,1752765738939,-300.0,0.00016514,2]
[372797348,1752765739011,-238.473546,0.00016515,2]
[372797349,1752765739086,-500.0,0.00016515,2]
[372797350,1752765739166,-500.0,0.00016515,2]
[372797351,1752765739241,-650.55620881,0.00016515,2]
[372797352,1752765739329,-500.0,0.00016515,2]
[372797353,1752765739414,-500.0,0.00016515,2]
[372797354,1752765739490,-500.0,0.00016515,2]
[372797355,1752765739563,-471.14584976,0.00016515,2]
[372797356,1752765739636,-500.0,0.00016515,2]
[372797357,1752765739708,-250.14679865,0.00016515,2]
[372797358,1752765740485,-500.0,0.00016515,2]
[372797359,1752765740704,-500.0,0.00016515,2]
[372797360,1752765740769,-500.0,0.00016515,2]
[372797361,1752765740844,-500.0,0.00016515,2]
[372797362,1752765740920,-500.0,0.00016515,2]
[372797363,1752765741000,-500.0,0.00016515,2]
[372797364,1752765741087,-500.0,0.00016515,2]
[372797365,1752765741153,-280.74488854,0.00016515,2]
[372797366,1752765741221,-500.0,0.00016515,2]
[372797367,1752765741290,-500.0,0.00016515,2]
[372797368,1752765741745,-500.0,0.00016515,2]
[372797369,1752765741814,-500.0,0.00016515,2]
[372797370,1752765741879,-500.0,0.00016515,2]
[372797371,1752765741948,-500.0,0.00016515,2]
[372797372,1752765742020,-500.0,0.00016515,2]
[372797373,1752765742086,-594.27435922,0.00016515,2]
[372797374,1752765742149,-223.73916787,0.00016515,2]
[372797375,1752765742215,-500.0,0.00016515,2]
[372797376,1752765742284,-500.0,0.00016515,2]
[372797377,1752765742356,-500.0,0.00016515,2]
[372797378,1752765742636,-500.0,0.00016515,2]
[372797379,1752765742708,-500.0,0.00016515,2]
[372797380,1752765742777,-500.0,0.00016515,2]
[372797381,1752765742846,-500.0,0.00016515,2]
[372797382,1752765742918,-500.0,0.00016515,2]
[372797383,1752765742983,-500.0,0.00016515,2]
[372797384,1752765743057,-500.0,0.00016515,2]
[372797385,1752765743133,-500.0,0.00016515,2]
[372797386,1752765743208,-500.0,0.00016515,2]
[372797387,1752765743284,-500.0,0.00016515,2]
[372797388,1752765743835,-500.0,0.00016515,2]
[372797389,1752765743909,-500.0,0.00016515,2]
[372797390,1752765743979,-500.0,0.00016515,2]
[372797391,1752765744050,-500.0,0.00016515,2]
[372797392,1752765744127,-500.0,0.00016515,2]
[372797393,1752765744202,-500.0,0.00016515,2]
[372797394,1752765744275,-500.0,0.00016515,2]
[372797395,1752765744348,-500.0,0.00016515,2]
[372797396,1752765744417,-500.0,0.00016515,2]
[372797397,1752765744494,-500.0,0.00016515,2]
[372797398,1752765744927,-500.0,0.00016515,2]
[372797399,1752765744997,-500.0,0.00016515,2]
[372797400,1752765745070,-409.98258094,0.00016515,2]
[372797401,1752765745141,-500.0,0.00016515,2]
[372797402,1752765745210,-500.0,0.00016515,2]
[372797403,1752765745280,-500.0,0.00016515,2]
[372797404,1752765745346,-500.0,0.00016515,2]
[372797405,1752765745422,-500.0,0.00016515,2]